[Event "Titled Tuesday Blitz December 14 2021"]
[White "VesePower"]
[Black "Dubov, Daniil"]
[BlackFideId "24126055"]
[WhiteElo "2755"]
[BlackElo "2749"]
[Result "0-1"]
[Round "08"]
[TimeControl "180+1"]
[Date "2021.12.14"]
[WhiteClock "0:00:20"]
[BlackClock "0:01:51"]

1. e4 {[%clk 0:03:00]}  e5 {[%clk 0:02:59]} 2. Nc3 {[%clk 0:03:01]}  Nc6 {[%clk 0:03:00]} 3. g3 {[%clk 0:03:01]}  Bc5 {[%clk 0:03:00]} 4. Bg2 {[%clk 0:03:02]}  d6 {[%clk 0:03:00]} 5. d3 {[%clk 0:03:01]}  h5 {[%clk 0:02:59]} 6. h3 {[%clk 0:03:01]}  Nge7 {[%clk 0:02:59]} 7. Nge2 {[%clk 0:03:01]}  Be6 {[%clk 0:02:59]} 8. Na4 {[%clk 0:03:01]}  Qd7 {[%clk 0:02:58]} 9. Nxc5 {[%clk 0:02:54]}  dxc5 {[%clk 0:02:59]} 10. Be3 {[%clk 0:02:55]}  b6 {[%clk 0:02:58]} 11. f4 {[%clk 0:02:55]}  f6 {[%clk 0:02:56]} 12. fxe5 {[%clk 0:02:43]}  Nxe5 {[%clk 0:02:53]} 13. Nf4 {[%clk 0:02:41]}  O-O-O {[%clk 0:02:50]} 14. Nxe6 {[%clk 0:02:20]}  Qxe6 {[%clk 0:02:51]} 15. Qe2 {[%clk 0:02:18]}  Kb8 {[%clk 0:02:50]} 16. O-O {[%clk 0:02:12]}  N7c6 {[%clk 0:02:46]} 17. Kh2 {[%clk 0:01:59]}  Nd4 {[%clk 0:02:45]} 18. Qf2 {[%clk 0:01:59]}  Qd6 {[%clk 0:02:34]} 19. Kg1 {[%clk 0:01:51]}  c4 {[%clk 0:02:29]} 20. dxc4 {[%clk 0:01:20]}  Nxc4 {[%clk 0:02:30]} 21. Bf4 {[%clk 0:01:17]}  Qc5 {[%clk 0:02:30]} 22. Kh2 {[%clk 0:01:17]}  g5 {[%clk 0:02:17]} 23. Be3 {[%clk 0:01:12]}  Nf3+ {[%clk 0:02:06]} 24. Qxf3 {[%clk 0:01:10]}  Nxe3 {[%clk 0:02:07]} 25. Rf2 {[%clk 0:01:09]}  Ng4+ {[%clk 0:02:06]} 26. Kg1 {[%clk 0:00:54]}  Qxf2+ {[%clk 0:02:05]} 27. Qxf2 {[%clk 0:00:54]}  Nxf2 {[%clk 0:02:06]} 28. Kxf2 {[%clk 0:00:55]}  Rd2+ {[%clk 0:02:07]} 29. Kg1 {[%clk 0:00:55]}  Rxc2 {[%clk 0:02:07]} 30. Rf1 {[%clk 0:00:56]}  Rd8 {[%clk 0:02:05]} 31. Rxf6 {[%clk 0:00:55]}  Rd1+ {[%clk 0:02:05]} 32. Bf1 {[%clk 0:00:55]}  Rxb2 {[%clk 0:02:04]} 33. e5 {[%clk 0:00:55]}  Rxa2 {[%clk 0:01:59]} 34. e6 {[%clk 0:00:54]}  Re2 {[%clk 0:01:57]} 35. g4 {[%clk 0:00:46]}  hxg4 {[%clk 0:01:56]} 36. hxg4 {[%clk 0:00:46]}  a5 {[%clk 0:01:53]} 37. Rf8+ {[%clk 0:00:20]}  Kb7 {[%clk 0:01:52]} 38. Rf6 {[%clk 0:00:20]}  a4 {[%clk 0:01:51]} 0-1


[Site "https://www.chess.com"]

[Event "Titled Tuesday Blitz December 14 2021"]
[White "Vidit, Santosh Gujrathi"]
[Black "Svane, Frederik"]
[WhiteFideId "5029465"]
[BlackFideId "12923044"]
[WhiteElo "2628"]
[BlackElo "2459"]
[Result "1/2-1/2"]
[Round "08"]
[TimeControl "180+1"]
[Date "2021.12.14"]
[WhiteClock "0:00:05"]
[BlackClock "0:00:03"]

1. e4 {[%clk 0:03:00]}  c5 {[%clk 0:02:58]} 2. Nf3 {[%clk 0:03:01]}  g6 {[%clk 0:02:59]} 3. c3 {[%clk 0:02:53]}  d5 {[%clk 0:02:59]} 4. exd5 {[%clk 0:02:53]}  Qxd5 {[%clk 0:03:00]} 5. d4 {[%clk 0:02:54]}  Bg7 {[%clk 0:02:58]} 6. Na3 {[%clk 0:02:50]}  Nf6 {[%clk 0:02:45]} 7. Bc4 {[%clk 0:02:34]}  Qe4+ {[%clk 0:02:44]} 8. Be3 {[%clk 0:02:34]}  cxd4 {[%clk 0:02:44]} 9. Bxf7+ {[%clk 0:02:26]}  Kf8 {[%clk 0:02:26]} 10. cxd4 {[%clk 0:02:25]}  Bg4 {[%clk 0:02:16]} 11. Bb3 {[%clk 0:02:06]}  Bxf3 {[%clk 0:02:15]} 12. gxf3 {[%clk 0:02:07]}  Qf5 {[%clk 0:02:12]} 13. Rc1 {[%clk 0:02:03]}  Nc6 {[%clk 0:02:10]} 14. Rc5 {[%clk 0:02:01]}  Qh3 {[%clk 0:02:05]} 15. Qe2 {[%clk 0:01:59]}  Ne8 {[%clk 0:01:21]} 16. Nc2 {[%clk 0:01:11]}  Bf6 {[%clk 0:01:08]} 17. Bd5 {[%clk 0:00:59]}  Kg7 {[%clk 0:01:00]} 18. Bf4 {[%clk 0:00:38]}  Nd6 {[%clk 0:00:42]} 19. Bxc6 {[%clk 0:00:37]}  bxc6 {[%clk 0:00:42]} 20. Rxc6 {[%clk 0:00:36]}  Rhc8 {[%clk 0:00:35]} 21. d5 {[%clk 0:00:24]}  Qf5 {[%clk 0:00:35]} 22. Bxd6 {[%clk 0:00:20]}  exd6 {[%clk 0:00:35]} 23. Ne3 {[%clk 0:00:17]}  Qb1+ {[%clk 0:00:27]} 24. Qd1 {[%clk 0:00:18]}  Qxb2 {[%clk 0:00:27]} 25. O-O {[%clk 0:00:18]}  h5 {[%clk 0:00:17]} 26. Rxd6 {[%clk 0:00:18]}  Qe5 {[%clk 0:00:15]} 27. Re6 {[%clk 0:00:18]}  Qf4 {[%clk 0:00:13]} 28. d6 {[%clk 0:00:18]}  Rd8 {[%clk 0:00:10]} 29. Qd3 {[%clk 0:00:17]}  Qxf3 {[%clk 0:00:06]} 30. Rd1 {[%clk 0:00:17]}  Rd7 {[%clk 0:00:05]} 31. Nd5 {[%clk 0:00:11]}  Qxd3 {[%clk 0:00:04]} 32. Rxd3 {[%clk 0:00:12]}  Bg5 {[%clk 0:00:04]} 33. f4 {[%clk 0:00:08]}  Bh4 {[%clk 0:00:03]} 34. f5 {[%clk 0:00:04]}  gxf5 {[%clk 0:00:02]} 35. Rf3 {[%clk 0:00:04]}  Rad8 {[%clk 0:00:02]} 36. Rxf5 {[%clk 0:00:02]}  Rxd6 {[%clk 0:00:02]} 37. Rxd6 {[%clk 0:00:03]}  Rxd6 {[%clk 0:00:03]} 38. Rxh5 {[%clk 0:00:03]}  Bf6 {[%clk 0:00:03]} 39. Kg2 {[%clk 0:00:03]}  Ra6 {[%clk 0:00:03]} 40. Nb4 {[%clk 0:00:01]}  Ra4 {[%clk 0:00:03]} 41. Rb5 {[%clk 0:00:02]}  a5 {[%clk 0:00:03]} 42. Nc6 {[%clk 0:00:02]}  Rxa2+ {[%clk 0:00:04]} 43. Kf3 {[%clk 0:00:03]}  Ra3+ {[%clk 0:00:04]} 44. Ke4 {[%clk 0:00:03]}  Rh3 {[%clk 0:00:03]} 45. Rxa5 {[%clk 0:00:03]}  Rxh2 {[%clk 0:00:03]} 46. Ra7+ {[%clk 0:00:03]}  Kg6 {[%clk 0:00:03]} 47. Ra6 {[%clk 0:00:04]}  Rh4+ {[%clk 0:00:04]} 48. Kf3 {[%clk 0:00:04]}  Kf7 {[%clk 0:00:03]} 49. Ra7+ {[%clk 0:00:04]}  Kg6 {[%clk 0:00:04]} 50. Rd7 {[%clk 0:00:04]}  Rc4 {[%clk 0:00:03]} 51. Rd6 {[%clk 0:00:05]}  Kf7 {[%clk 0:00:04]} 52. Ke2 {[%clk 0:00:05]}  Ra4 {[%clk 0:00:04]} 53. Kd3 {[%clk 0:00:05]}  Ra3+ {[%clk 0:00:03]} 54. Kc4 {[%clk 0:00:06]}  Rc3+ {[%clk 0:00:03]} 55. Kb5 {[%clk 0:00:06]}  Rb3+ {[%clk 0:00:03]} 56. Ka6 {[%clk 0:00:06]}  Rb1 {[%clk 0:00:03]} 57. Rd5 {[%clk 0:00:04]}  Ke6 {[%clk 0:00:03]} 58. Rd3 {[%clk 0:00:04]}  Rc1 {[%clk 0:00:03]} 59. Kb6 {[%clk 0:00:04]}  Rb1+ {[%clk 0:00:03]} 60. Kc7 {[%clk 0:00:04]}  Be5+ {[%clk 0:00:03]} 61. Kc8 {[%clk 0:00:04]}  Rc1 {[%clk 0:00:03]} 62. Kb7 {[%clk 0:00:05]}  Rb1+ {[%clk 0:00:03]} 63. Ka6 {[%clk 0:00:06]}  Ra1+ {[%clk 0:00:04]} 64. Kb5 {[%clk 0:00:06]}  Rb1+ {[%clk 0:00:04]} 65. Ka4 {[%clk 0:00:06]}  Ra1+ {[%clk 0:00:04]} 66. Kb3 {[%clk 0:00:07]}  Rb1+ {[%clk 0:00:05]} 67. Kc2 {[%clk 0:00:07]}  Rb6 {[%clk 0:00:05]} 68. Na5 {[%clk 0:00:08]}  Bd6 {[%clk 0:00:05]} 69. Nc4 {[%clk 0:00:08]}  Rc6 {[%clk 0:00:05]} 70. Kb3 {[%clk 0:00:08]}  Be7 {[%clk 0:00:05]} 71. Re3+ {[%clk 0:00:09]}  Kf6 {[%clk 0:00:06]} 72. Rf3+ {[%clk 0:00:09]}  Ke6 {[%clk 0:00:06]} 73. Kc3 {[%clk 0:00:10]}  Bf6+ {[%clk 0:00:06]} 74. Kd3 {[%clk 0:00:10]}  Rc8 {[%clk 0:00:06]} 75. Re3+ {[%clk 0:00:10]}  Be5 {[%clk 0:00:01]} 76. Rxe5+ {[%clk 0:00:10]}  Kf6 {[%clk 0:00:02]} 77. Rb5 {[%clk 0:00:11]}  Rd8+ {[%clk 0:00:02]} 78. Ke4 {[%clk 0:00:11]}  Rd1 {[%clk 0:00:03]} 79. Ne3 {[%clk 0:00:11]}  Ra1 {[%clk 0:00:02]} 80. Rb6+ {[%clk 0:00:12]}  Ke7 {[%clk 0:00:03]} 81. Nd5+ {[%clk 0:00:12]}  Kd7 {[%clk 0:00:03]} 82. Kd4 {[%clk 0:00:12]}  Rd1+ {[%clk 0:00:03]} 83. Kc4 {[%clk 0:00:12]}  Rc1+ {[%clk 0:00:03]} 84. Nc3 {[%clk 0:00:13]}  Rc2 {[%clk 0:00:03]} 85. Rg6 {[%clk 0:00:14]}  Rc1 {[%clk 0:00:03]} 86. Kb4 {[%clk 0:00:14]}  Ke7 {[%clk 0:00:02]} 87. Nd5+ {[%clk 0:00:14]}  Kf7 {[%clk 0:00:03]} 88. Rf6+ {[%clk 0:00:14]}  Kg7 {[%clk 0:00:03]} 89. Rf2 {[%clk 0:00:15]}  Rc8 {[%clk 0:00:03]} 90. Kb5 {[%clk 0:00:13]}  Rc1 {[%clk 0:00:02]} 91. Nb4 {[%clk 0:00:12]}  Kg6 {[%clk 0:00:02]} 92. Nc6 {[%clk 0:00:12]}  Kg5 {[%clk 0:00:03]} 93. Kb6 {[%clk 0:00:13]}  Rd1 {[%clk 0:00:03]} 94. Kc7 {[%clk 0:00:13]}  Rd3 {[%clk 0:00:02]} 95. Ne5 {[%clk 0:00:13]}  Rd1 {[%clk 0:00:02]} 96. Kc6 {[%clk 0:00:13]}  Rc1+ {[%clk 0:00:01]} 97. Kd5 {[%clk 0:00:13]}  Rd1+ {[%clk 0:00:01]} 98. Ke6 {[%clk 0:00:14]}  Re1 {[%clk 0:00:01]} 99. Rf8 {[%clk 0:00:14]}  Ra1 {[%clk 0:00:01]} 100. Rg8+ {[%clk 0:00:14]}  Kh4 {[%clk 0:00:02]} 101. Kf6 {[%clk 0:00:13]}  Rf1+ {[%clk 0:00:02]} 102. Ke6 {[%clk 0:00:14]}  Ra1 {[%clk 0:00:02]} 103. Kf5 {[%clk 0:00:13]}  Rf1+ {[%clk 0:00:02]} 104. Ke4 {[%clk 0:00:14]}  Ra1 {[%clk 0:00:02]} 105. Kf4 {[%clk 0:00:14]}  Kh3 {[%clk 0:00:03]} 106. Rg3+ {[%clk 0:00:12]}  Kh4 {[%clk 0:00:03]} 107. Rg4+ {[%clk 0:00:08]}  Kh3 {[%clk 0:00:03]} 108. Rg6 {[%clk 0:00:07]}  Ra4+ {[%clk 0:00:03]} 109. Kf5 {[%clk 0:00:07]}  Rb4 {[%clk 0:00:03]} 110. Nf3 {[%clk 0:00:06]}  Rf4+ {[%clk 0:00:03]} 111. Kxf4 {[%clk 0:00:05]} 1/2-1/2


[Site "https://www.chess.com"]

[Event "Titled Tuesday Blitz December 14 2021"]
[White "Wagner, Dennis"]
[Black "Le, Tuan Minh"]
[WhiteFideId "24650684"]
[BlackFideId "12401153"]
[WhiteElo "2355"]
[BlackElo "2450"]
[Result "1-0"]
[Round "08"]
[TimeControl "180+1"]
[Date "2021.12.14"]
[WhiteClock "0:00:16"]
[BlackClock "0:00:02"]

1. d4 {[%clk 0:03:00]}  d5 {[%clk 0:03:00]} 2. c4 {[%clk 0:03:00]}  c6 {[%clk 0:02:57]} 3. Nf3 {[%clk 0:03:00]}  Nf6 {[%clk 0:02:58]} 4. Nc3 {[%clk 0:02:59]}  a6 {[%clk 0:02:58]} 5. Qc2 {[%clk 0:02:58]}  b5 {[%clk 0:02:55]} 6. e4 {[%clk 0:02:57]}  bxc4 {[%clk 0:02:54]} 7. e5 {[%clk 0:02:57]}  Nfd7 {[%clk 0:02:53]} 8. e6 {[%clk 0:02:58]}  fxe6 {[%clk 0:02:51]} 9. b3 {[%clk 0:02:58]}  g6 {[%clk 0:02:45]} 10. h4 {[%clk 0:02:53]}  Bg7 {[%clk 0:02:42]} 11. h5 {[%clk 0:02:53]}  Nf8 {[%clk 0:02:39]} 12. bxc4 {[%clk 0:02:52]}  Nbd7 {[%clk 0:02:27]} 13. hxg6 {[%clk 0:02:42]}  hxg6 {[%clk 0:02:23]} 14. Rxh8 {[%clk 0:02:42]}  Bxh8 {[%clk 0:02:23]} 15. Bd3 {[%clk 0:02:42]}  Kf7 {[%clk 0:02:17]} 16. Ng5+ {[%clk 0:02:26]}  Kg8 {[%clk 0:01:40]} 17. Bxg6 {[%clk 0:02:25]}  Bxd4 {[%clk 0:01:40]} 18. Bf7+ {[%clk 0:01:47]}  Kh8 {[%clk 0:01:40]} 19. Bxe6 {[%clk 0:01:09]}  Ne5 {[%clk 0:01:30]} 20. Bxc8 {[%clk 0:01:02]}  Rxc8 {[%clk 0:01:29]} 21. Bf4 {[%clk 0:00:56]}  Qa5 {[%clk 0:00:45]} 22. Bxe5+ {[%clk 0:00:54]}  Bxe5 {[%clk 0:00:46]} 23. Nf7+ {[%clk 0:00:55]}  Kg7 {[%clk 0:00:46]} 24. Nxe5 {[%clk 0:00:55]}  d4 {[%clk 0:00:47]} 25. Nf3 {[%clk 0:00:32]}  dxc3 {[%clk 0:00:47]} 26. Rc1 {[%clk 0:00:32]}  Rb8 {[%clk 0:00:41]} 27. Qxc3+ {[%clk 0:00:31]}  Qxc3+ {[%clk 0:00:41]} 28. Rxc3 {[%clk 0:00:32]}  Nd7 {[%clk 0:00:42]} 29. Ra3 {[%clk 0:00:30]}  Rb1+ {[%clk 0:00:39]} 30. Ke2 {[%clk 0:00:30]}  Rb2+ {[%clk 0:00:39]} 31. Ke3 {[%clk 0:00:29]}  Nb6 {[%clk 0:00:25]} 32. Ne5 {[%clk 0:00:27]}  Kf6 {[%clk 0:00:16]} 33. f4 {[%clk 0:00:27]}  Rxg2 {[%clk 0:00:12]} 34. Rxa6 {[%clk 0:00:28]}  Rb2 {[%clk 0:00:07]} 35. Rxb6 {[%clk 0:00:28]}  Rxa2 {[%clk 0:00:07]} 36. Rxc6+ {[%clk 0:00:28]}  Kf5 {[%clk 0:00:07]} 37. Nd3 {[%clk 0:00:26]}  Rh2 {[%clk 0:00:03]} 38. Rc5+ {[%clk 0:00:26]}  Ke6 {[%clk 0:00:03]} 39. Re5+ {[%clk 0:00:26]}  Kd6 {[%clk 0:00:04]} 40. Kd4 {[%clk 0:00:26]}  Rh4 {[%clk 0:00:03]} 41. c5+ {[%clk 0:00:26]}  Kd7 {[%clk 0:00:04]} 42. Kd5 {[%clk 0:00:26]}  Rh6 {[%clk 0:00:04]} 43. Re3 {[%clk 0:00:24]}  Ra6 {[%clk 0:00:04]} 44. Ne5+ {[%clk 0:00:24]}  Kc7 {[%clk 0:00:04]} 45. f5 {[%clk 0:00:24]}  Rf6 {[%clk 0:00:03]} 46. Ke4 {[%clk 0:00:19]}  Rh6 {[%clk 0:00:03]} 47. Ra3 {[%clk 0:00:18]}  Kb8 {[%clk 0:00:01]} 48. Kd5 {[%clk 0:00:15]}  Rh5 {[%clk 0:00:01]} 49. Ke6 {[%clk 0:00:15]}  Rh1 {[%clk 0:00:01]} 50. Kxe7 {[%clk 0:00:15]}  Re1 {[%clk 0:00:02]} 51. Ke6 {[%clk 0:00:16]}  Rc1 {[%clk 0:00:02]} 52. c6 {[%clk 0:00:15]}  Kc7 {[%clk 0:00:02]} 53. f6 {[%clk 0:00:16]}  Re1 {[%clk 0:00:02]} 54. f7 {[%clk 0:00:16]}  Rf1 {[%clk 0:00:02]} 55. Ra7+ {[%clk 0:00:16]} 1-0


[Site "https://www.chess.com"]

[Event "Titled Tuesday Blitz December 14 2021"]
[White "Zakhartsov, Vladimir"]
[Black "Albornoz Cabrera, Carlos Daniel"]
[WhiteFideId "4145097"]
[BlackFideId "3518736"]
[WhiteElo "2411"]
[BlackElo "2490"]
[Result "0-1"]
[Round "08"]
[TimeControl "180+1"]
[Date "2021.12.14"]
[WhiteClock "0:00:03"]
[BlackClock "0:00:04"]

1. c4 {[%clk 0:02:53]}  Nf6 {[%clk 0:02:59]} 2. Nc3 {[%clk 0:02:52]}  g6 {[%clk 0:02:59]} 3. g3 {[%clk 0:02:50]}  Bg7 {[%clk 0:02:59]} 4. Bg2 {[%clk 0:02:51]}  O-O {[%clk 0:02:59]} 5. Nf3 {[%clk 0:02:50]}  d6 {[%clk 0:02:59]} 6. O-O {[%clk 0:02:50]}  e5 {[%clk 0:03:00]} 7. d4 {[%clk 0:02:50]}  Nbd7 {[%clk 0:03:00]} 8. b3 {[%clk 0:02:49]}  exd4 {[%clk 0:03:00]} 9. Nxd4 {[%clk 0:02:49]}  Re8 {[%clk 0:03:00]} 10. Bb2 {[%clk 0:02:49]}  a5 {[%clk 0:02:59]} 11. Qd2 {[%clk 0:02:49]}  Nc5 {[%clk 0:02:59]} 12. Rfd1 {[%clk 0:02:49]}  h5 {[%clk 0:02:57]} 13. h4 {[%clk 0:02:46]}  Bg4 {[%clk 0:02:48]} 14. Re1 {[%clk 0:02:35]}  Qe7 {[%clk 0:02:47]} 15. a3 {[%clk 0:02:32]}  Bd7 {[%clk 0:02:12]} 16. e4 {[%clk 0:02:26]}  Ng4 {[%clk 0:02:02]} 17. Nd5 {[%clk 0:02:24]}  Qd8 {[%clk 0:02:00]} 18. Rab1 {[%clk 0:02:18]}  c6 {[%clk 0:01:55]} 19. Nf4 {[%clk 0:02:16]}  Ne5 {[%clk 0:01:47]} 20. Rbc1 {[%clk 0:02:12]}  Bh6 {[%clk 0:01:41]} 21. b4 {[%clk 0:02:10]}  axb4 {[%clk 0:01:40]} 22. axb4 {[%clk 0:02:11]}  Ncd3 {[%clk 0:01:40]} 23. Nf3 {[%clk 0:01:48]}  Nxe1 {[%clk 0:01:35]} 24. Nxe1 {[%clk 0:01:29]}  Be6 {[%clk 0:01:26]} 25. c5 {[%clk 0:01:20]}  Bg7 {[%clk 0:01:14]} 26. cxd6 {[%clk 0:01:13]}  Ra2 {[%clk 0:01:14]} 27. Rc2 {[%clk 0:01:03]}  Rxb2 {[%clk 0:01:10]} 28. Rxb2 {[%clk 0:00:56]}  Nc4 {[%clk 0:01:10]} 29. Qe2 {[%clk 0:00:43]}  Nxb2 {[%clk 0:01:08]} 30. e5 {[%clk 0:00:44]}  Bg4 {[%clk 0:00:56]} 31. Qxb2 {[%clk 0:00:42]}  Bxe5 {[%clk 0:00:56]} 32. Qc1 {[%clk 0:00:41]}  Bxf4 {[%clk 0:00:53]} 33. gxf4 {[%clk 0:00:39]}  Qxd6 {[%clk 0:00:53]} 34. Nc2 {[%clk 0:00:39]}  Re2 {[%clk 0:00:45]} 35. Bf1 {[%clk 0:00:15]}  Rd2 {[%clk 0:00:40]} 36. Ne3 {[%clk 0:00:14]}  Qd4 {[%clk 0:00:34]} 37. b5 {[%clk 0:00:13]}  Bd7 {[%clk 0:00:31]} 38. b6 {[%clk 0:00:11]}  Rb2 {[%clk 0:00:23]} 39. Qa1 {[%clk 0:00:07]}  Qd2 {[%clk 0:00:20]} 40. Nd1 {[%clk 0:00:04]}  Ra2 {[%clk 0:00:20]} 41. Qb1 {[%clk 0:00:03]}  Bf5 {[%clk 0:00:17]} 42. Qb3 {[%clk 0:00:03]}  Qc2 {[%clk 0:00:16]} 43. Qf3 {[%clk 0:00:02]}  Bg4 {[%clk 0:00:15]} 44. Qe3 {[%clk 0:00:02]}  Bxd1 {[%clk 0:00:10]} 45. Bd3 {[%clk 0:00:02]}  Qd2 {[%clk 0:00:07]} 46. Qe8+ {[%clk 0:00:02]}  Kg7 {[%clk 0:00:07]} 47. Qe5+ {[%clk 0:00:02]}  Kf8 {[%clk 0:00:05]} 48. Qd6+ {[%clk 0:00:02]}  Kg8 {[%clk 0:00:05]} 49. Qb8+ {[%clk 0:00:02]}  Kh7 {[%clk 0:00:05]} 50. Bxg6+ {[%clk 0:00:03]}  fxg6 {[%clk 0:00:04]} 51. Qc7+ {[%clk 0:00:03]}  Kh6 {[%clk 0:00:04]} 52. Kh1 {[%clk 0:00:03]}  Bf3+ {[%clk 0:00:04]} 0-1


[Site "https://www.chess.com"]

[Event "Titled Tuesday Blitz December 14 2021"]
[White "Zhigalko, Sergei"]
[Black "Agasarov, Benik"]
[WhiteFideId "13502956"]
[BlackFideId "13314823"]
[WhiteElo "2662"]
[BlackElo "2628"]
[Result "1-0"]
[Round "08"]
[TimeControl "180+1"]
[Date "2021.12.14"]
[WhiteClock "0:00:09"]
[BlackClock "0:00:09"]

1. e4 {[%clk 0:03:00]}  e5 {[%clk 0:02:58]} 2. Nf3 {[%clk 0:03:01]}  Nc6 {[%clk 0:02:58]} 3. Bc4 {[%clk 0:03:01]}  Nf6 {[%clk 0:02:58]} 4. d3 {[%clk 0:03:00]}  Be7 {[%clk 0:02:56]} 5. O-O {[%clk 0:03:00]}  d6 {[%clk 0:02:55]} 6. c3 {[%clk 0:02:59]}  O-O {[%clk 0:02:55]} 7. Re1 {[%clk 0:02:57]}  Na5 {[%clk 0:02:54]} 8. Bb5 {[%clk 0:02:57]}  a6 {[%clk 0:02:54]} 9. Ba4 {[%clk 0:02:58]}  b5 {[%clk 0:02:54]} 10. Bc2 {[%clk 0:02:58]}  c5 {[%clk 0:02:54]} 11. Nbd2 {[%clk 0:02:59]}  Qc7 {[%clk 0:02:47]} 12. Nf1 {[%clk 0:02:59]}  Be6 {[%clk 0:02:39]} 13. Bg5 {[%clk 0:02:56]}  h6 {[%clk 0:02:38]} 14. Bh4 {[%clk 0:02:56]}  Rac8 {[%clk 0:02:33]} 15. Ne3 {[%clk 0:02:55]}  g6 {[%clk 0:02:31]} 16. Qd2 {[%clk 0:02:50]}  Kg7 {[%clk 0:02:30]} 17. h3 {[%clk 0:02:38]}  Nc6 {[%clk 0:02:28]} 18. Rad1 {[%clk 0:02:35]}  Nh5 {[%clk 0:02:28]} 19. Bb3 {[%clk 0:02:10]}  Bxh4 {[%clk 0:02:16]} 20. Nxh4 {[%clk 0:02:11]}  Nf4 {[%clk 0:02:10]} 21. Kh2 {[%clk 0:02:03]}  Qe7 {[%clk 0:02:07]} 22. g3 {[%clk 0:01:41]}  Qf6 {[%clk 0:01:45]} 23. Bxe6 {[%clk 0:00:49]}  fxe6 {[%clk 0:01:43]} 24. Rg1 {[%clk 0:00:34]}  Qg5 {[%clk 0:01:23]} 25. Rdf1 {[%clk 0:00:19]}  Kh7 {[%clk 0:01:04]} 26. Nhg2 {[%clk 0:00:12]}  Nxg2 {[%clk 0:00:45]} 27. Kxg2 {[%clk 0:00:12]}  d5 {[%clk 0:00:41]} 28. h4 {[%clk 0:00:11]}  Qf6 {[%clk 0:00:40]} 29. f3 {[%clk 0:00:08]}  h5 {[%clk 0:00:39]} 30. exd5 {[%clk 0:00:08]}  exd5 {[%clk 0:00:38]} 31. Nxd5 {[%clk 0:00:09]}  Qd6 {[%clk 0:00:38]} 32. c4 {[%clk 0:00:07]}  Nd4 {[%clk 0:00:36]} 33. b3 {[%clk 0:00:07]}  Rf7 {[%clk 0:00:33]} 34. Rf2 {[%clk 0:00:07]}  Rcf8 {[%clk 0:00:33]} 35. Rgf1 {[%clk 0:00:08]}  Qe6 {[%clk 0:00:32]} 36. Nc3 {[%clk 0:00:06]}  Kg7 {[%clk 0:00:30]} 37. Ne4 {[%clk 0:00:06]}  Qc6 {[%clk 0:00:28]} 38. Qe3 {[%clk 0:00:05]}  Nf5 {[%clk 0:00:28]} 39. Qd2 {[%clk 0:00:04]}  Rd7 {[%clk 0:00:28]} 40. Ng5 {[%clk 0:00:04]}  Rfd8 {[%clk 0:00:27]} 41. Qe2 {[%clk 0:00:04]}  Qf6 {[%clk 0:00:19]} 42. Rd1 {[%clk 0:00:04]}  Nd4 {[%clk 0:00:19]} 43. Qe3 {[%clk 0:00:04]}  Nf5 {[%clk 0:00:19]} 44. Qxc5 {[%clk 0:00:04]}  Rxd3 {[%clk 0:00:10]} 45. Rxd3 {[%clk 0:00:03]}  Rxd3 {[%clk 0:00:11]} 46. Qa7+ {[%clk 0:00:03]}  Qe7 {[%clk 0:00:11]} 47. Qxa6 {[%clk 0:00:03]}  Ne3+ {[%clk 0:00:11]} 48. Kh2 {[%clk 0:00:02]}  bxc4 {[%clk 0:00:11]} 49. bxc4 {[%clk 0:00:02]}  Nf5 {[%clk 0:00:11]} 50. Kg2 {[%clk 0:00:02]}  Ne3+ {[%clk 0:00:10]} 51. Kh2 {[%clk 0:00:03]}  Nf5 {[%clk 0:00:09]} 52. Qe6 {[%clk 0:00:03]}  Qc5 {[%clk 0:00:07]} 53. Rg2 {[%clk 0:00:03]}  Qc7 {[%clk 0:00:05]} 54. Qxf5 {[%clk 0:00:03]}  gxf5 {[%clk 0:00:03]} 55. Ne6+ {[%clk 0:00:04]}  Kf6 {[%clk 0:00:04]} 56. Nxc7 {[%clk 0:00:05]}  Rxf3 {[%clk 0:00:05]} 57. Rc2 {[%clk 0:00:04]}  Ra3 {[%clk 0:00:05]} 58. c5 {[%clk 0:00:05]}  Ke7 {[%clk 0:00:05]} 59. c6 {[%clk 0:00:04]}  Kd8 {[%clk 0:00:06]} 60. Nd5 {[%clk 0:00:05]}  Kc8 {[%clk 0:00:06]} 61. c7 {[%clk 0:00:05]}  Ra5 {[%clk 0:00:07]} 62. Ne7+ {[%clk 0:00:05]}  Kd7 {[%clk 0:00:07]} 63. c8=Q+ {[%clk 0:00:06]}  Kxe7 {[%clk 0:00:08]} 64. Qc7+ {[%clk 0:00:07]}  Ke6 {[%clk 0:00:08]} 65. Qxa5 {[%clk 0:00:08]}  Kf6 {[%clk 0:00:08]} 66. Rc6+ {[%clk 0:00:08]}  Kg7 {[%clk 0:00:09]} 67. Qa7+ {[%clk 0:00:09]} 1-0


[Site "https://www.chess.com"]

[Event "Titled Tuesday Blitz December 14 2021"]
[White "Zierk, Steven"]
[Black "Paravyan, David"]
[WhiteFideId "2034255"]
[BlackFideId "4194985"]
[WhiteElo "2494"]
[BlackElo "2656"]
[Result "0-1"]
[Round "08"]
[TimeControl "180+1"]
[Date "2021.12.14"]
[WhiteClock "0:01:10"]
[BlackClock "0:01:51"]

1. e4 {[%clk 0:02:59]}  c5 {[%clk 0:02:56]} 2. Nf3 {[%clk 0:02:59]}  Nc6 {[%clk 0:02:56]} 3. Bb5 {[%clk 0:02:59]}  g6 {[%clk 0:02:56]} 4. O-O {[%clk 0:02:59]}  Bg7 {[%clk 0:02:57]} 5. c3 {[%clk 0:02:59]}  Nf6 {[%clk 0:02:56]} 6. Re1 {[%clk 0:02:58]}  O-O {[%clk 0:02:55]} 7. d4 {[%clk 0:02:58]}  d5 {[%clk 0:02:55]} 8. e5 {[%clk 0:02:59]}  Ne4 {[%clk 0:02:56]} 9. Be3 {[%clk 0:02:59]}  Bg4 {[%clk 0:02:54]} 10. h3 {[%clk 0:02:50]}  Bd7 {[%clk 0:02:54]} 11. a4 {[%clk 0:02:48]}  a6 {[%clk 0:02:53]} 12. Bxc6 {[%clk 0:02:44]}  Bxc6 {[%clk 0:02:53]} 13. dxc5 {[%clk 0:02:43]}  Qc7 {[%clk 0:02:44]} 14. Nbd2 {[%clk 0:02:25]}  Bxe5 {[%clk 0:02:39]} 15. Nxe5 {[%clk 0:02:24]}  Qxe5 {[%clk 0:02:40]} 16. Bh6 {[%clk 0:02:23]}  Rfd8 {[%clk 0:02:34]} 17. f3 {[%clk 0:02:17]}  Qh5 {[%clk 0:02:34]} 18. Bf4 {[%clk 0:02:15]}  Nxc5 {[%clk 0:01:53]} 19. Rxe7 {[%clk 0:01:10]}  Qh4 {[%clk 0:01:51]} 0-1


[Site "https://www.chess.com"]